[Event "15th Arad Open 2022"]
[Site "Arad"]
[Date "2022.08.11"]
[Round "6.3"]
[White "Manolache, Marius"]
[Black "David, Alexandru-Vasile"]
[Result "1/2-1/2"]
[ECO "A06"]
[WhiteElo "2469"]
[BlackElo "2433"]
[Annotator "TA"]
[PlyCount "113"]
[EventDate "2022.08.08"]
[EventType "swiss"]
[EventCountry "ROU"]
[SourceTitle "playchess.com"]
[Source "ChessBase"]
[SourceQuality "1"]
[TimeControl "5400+30"]

{[%evp 9,113,0,18,18,23,24,17,27,24,9,20,-8,0,-9,-5,-9,-9,-63,-63,-70,0,-6,-9,-35,0,0,0,0,68,52,95,64,63,60,59,59,50,52,61,59,39,43,41,38,38,23,23,4,24,0,0,0,0,0,11,11,27,10,211,226,209,205,184,53,52,38,93,37,37,37,57,57,57,53,53,38,38,0,53,53,58,58,58,58,58,58,58,58,58,16,16,0,0,0,52,52,53,53,53,53,53,53,53,0,53,0]} 1. Nf3 {[%emt 0:00:06]} d5 {[%emt 0:00:18]} 2. b3 {[%emt 0:00:14]} c5 {[%emt 0:03:35]} 3. e3 {[%emt 0:00:05]} a6 {[%emt 0:00:09]} 4. Bb2 {[%emt 0:02:08]} Nc6 {[%emt 0:00:09]} 5. Be2 {[%emt 0:02:01]} Bg4 {[%emt 0:03:33]} 6. c4 {[%emt 0:02:21] A06: Réti Opening: 1 Nf3 d5.} dxc4 {[%emt 0:06:52]} 7. bxc4 {[%emt 0:04:03]} e6 {[%emt 0:00:25]} 8. O-O {[%emt 0:00:11] The position is equal.} Nf6 {[%emt 0:00:07]} 9. h3 {[%emt 0:05:47]} Bh5 {[%emt 0:01:16] [#]} 10. Bxf6 $146 {[%emt 0:04:38]} ({Predecessor:} 10. Nc3 Be7 11. Ne1 Bxe2 12. Qxe2 O-O 13. Nc2 Rc8 14. Rfd1 Qb6 15. Rab1 Rfd8 16. Na4 {1-0 (30) Domingo Nunez,R (2382)-Devaev,A (2325) Chess.com INT 2022}) 10... Qxf6 {[%emt 0:16:12]} 11. Qb3 {[%emt 0:03:52][%cal Ob3b7]} Rb8 {[%emt 0:00:52]} (11... Qxa1 $2 12. Qxb7 Nd8 13. Qxa8 Qxa2 14. Nc3 $18) 12. Nc3 {[%emt 0:00:14][%cal Od2d4]} Bg6 {[%emt 0:02:58]} 13. d4 {[%emt 0:06:42]} (13. Rfd1 $11) 13... cxd4 $15 {[%emt 0:10:43]} 14. exd4 {[%emt 0:00:07]} Be7 {[%emt 0:00:12]} (14... Nxd4 $15 15. Nxd4 Qxd4) 15. Rfd1 {[%emt 0:20:34]} O-O {[%emt 0:00:39]} 16. Rd2 {[%emt 0:04:27]} Rfd8 {[%emt 0:10:17][%cal Rc6d4]} 17. Rad1 $1 {[%emt 0:00:12]} Bb4 {[%emt 0:00:35]} 18. Ne5 {[%emt 0:10:53]} Nxd4 {[%emt 0:05:50]} 19. Ng4 $14 {[%emt 0:01:33]} Bxc3 {[%emt 0:12:09]} 20. Nxf6+ {[%emt 0:00:12]} gxf6 {[%emt 0:00:03]} 21. Qxc3 {[%emt 0:03:16]} Nxe2+ {[%emt 0:00:07][%mdl 64] Remove Defender} 22. Rxe2 {[%emt 0:00:04]} Rxd1+ {[%emt 0:00:05]} 23. Kh2 {[%emt 0:00:05]} Kg7 {[%emt 0:00:31]} 24. Rd2 {[%emt 0:01:09]} Rxd2 {[%emt 0:01:26]} 25. Qxd2 {[%emt 0:00:05][%mdl 4096] Endgame Black must now prevent Qd7. KQ-KRB} Rc8 {[%emt 0:00:05]} 26. Qd4 {[%emt 0:00:19][%mdl 1024] White has compensation.} e5 {[%emt 0:00:34]} 27. Qd5 {[%emt 0:00:22]} b6 {[%emt 0:00:07] Inhibits c5.} 28. f3 {[%emt 0:05:38]} Rc5 {[%emt 0:01:01]} 29. Qd6 {[%emt 0:00:06]} Rxc4 {[%emt 0:00:07]} 30. Qxb6 {[%emt 0:00:06]} Ra4 {[%emt 0:00:43]} 31. Qb3 {[%emt 0:00:15]} Rd4 {[%emt 0:00:08]} 32. Qc3 {[%emt 0:02:47]} Bd3 {[%emt 0:02:38]} 33. a4 {[%emt 0:05:42]} a5 $2 {[%emt 0:06:50]} (33... Be2 $11 {and Black is okay.}) 34. f4 $1 $18 {[%emt 0:01:54]} ({And not} 34. Qxa5 Bc2 $11) 34... Rd5 {[%emt 0:00:18] [#]} 35. fxe5 {[%emt 0:01:00]} fxe5 {[%emt 0:00:06] [#]} 36. h4 {[%emt 0:01:40]} (36. g4 $1 $18) 36... h5 $1 $14 {[%emt 0:02:16]} 37. Qd2 {[%emt 0:01:34][%cal Og2g4] And now g4! would win.} Be4 {[%emt 0:01:12]} (37... f6 $14) 38. Qg5+ {[%emt 0:00:28]} (38. Qe3 $16 Bg6 39. Qa7) 38... Bg6 {[%emt 0:00:07]} 39. Qe7 {[%emt 0:02:45]} Kh7 {[%emt 0:03:54]} 40. Qa7 {[%emt 0:00:00]} e4 {[%emt 0:00:00]} 41. Kg1 {[%emt 0:00:00]} Rf5 {[%emt 0:00:00]} 42. Qd4 {[%emt 0:00:00]} Rf4 {[%emt 0:00:00]} 43. Qe5 {[%emt 0:00:00][%csl LRa5,LRf4]} (43. g3 $5 {[%cal Rg3f4]} Rf3 44. Kg2 $14) 43... Rf5 {[%emt 0:00:00]} ({Better is} 43... Rxh4 $11 44. Qxa5 e3) 44. Qc3 {[%emt 0:00:00]} Kg8 {[%emt 0:00:00]} 45. Kh2 {[%emt 0:00:00]} Kh7 {[%emt 0:00:00]} 46. Kg3 {[%emt 0:00:00] Prevents Rf4.} Kg8 {[%emt 0:00:00]} 47. Qd4 {[%emt 0:00:12]} Kh7 {[%emt 0:00:00]} 48. Kh3 {[%emt 0:06:12]} Rf4 {[%emt 0:00:00]} 49. Qe5 {[%emt 0:00:23]} Rg4 {[%emt 0:00:00]} 50. Qxa5 {[%emt 0:01:17]} e3 {[%emt 0:00:00]} 51. Qe1 {[%emt 0:00:07]} Rxa4 {[%emt 0:00:00]} ({Black should play} 51... Bf5 $11) 52. Qxe3 {[%emt 0:00:06]} Ra5 {[%emt 0:00:00]} 53. Kh2 {[%emt 0:00:17]} Rf5 {[%emt 0:00:00]} 54. Qd4 {[%emt 0:00:08]} Kg8 {[%emt 0:00:00]} 55. Kg1 {[%emt 0:00:07]} Kh7 {[%emt 0:00:00]} 56. Kh2 {[%emt 0:00:04]} Kg8 $1 {[%emt 0:00:00]} 57. Kg1 {[%emt 0:00:04] Weighted Error Value: White=0.14 (very precise) /Black=0.18 (very precise)} (57. Qd8+ $14 Kg7 58. Qc7) 1/2-1/2

[Event "15th Arad Open 2022"]
[Site "Arad"]
[Date "2022.08.11"]
[Round "6.4"]
[White "Padurean, Daniel-Cristian"]
[Black "Srbis, Jurica"]
[Result "1/2-1/2"]
[ECO "B10"]
[WhiteElo "2126"]
[BlackElo "2472"]
[Annotator "TA"]
[PlyCount "91"]
[EventDate "2022.08.08"]
[EventType "swiss"]
[EventCountry "ROU"]
[SourceTitle "playchess.com"]
[Source "ChessBase"]
[SourceQuality "1"]
[TimeControl "5400+30"]

{[%evp 9,91,0,9,0,0,0,0,-1,0,-3,7,4,9,13,13,0,-15,-14,-7,-8,-17,-17,-17,-34,0,0,0,-21,-14,-22,-21,-35,-12,-25,-11,-26,-11,-58,-58,-59,-73,-89,-78,-81,-92,-89,-82,-90,-95,-77,-87,-97,0,-20,0,0,0,0,0,0,0,0,0,0,0,0,0,0,0,0,0,0,20,0,0,0,0,0,0,0,0,0,0,0]} 1. e4 {[%emt 0:00:03]} c6 {[%emt 0:00:59]} 2. Nf3 {[%emt 0:00:41]} d5 {[%emt 0:00:40]} 3. exd5 {[%emt 0:00:06]} cxd5 {[%emt 0:00:07]} 4. Ne5 {[%emt 0:00:08]} Nc6 {[%emt 0:01:38]} 5. d4 {[%emt 0:00:18]} a6 {[%emt 0:01:32]} 6. c3 {[%emt 0:01:18] B10: Caro-Kann: 2 d3 and 2 c4.} Nxe5 {[%emt 0:00:28]} 7. dxe5 {[%emt 0:00:06]} Bf5 {[%emt 0:00:11]} 8. Nd2 {[%emt 0:02:32]} e6 {[%emt 0:03:44] [#]} 9. Nf3 $146 {[%emt 0:01:28]} ({Predecessor:} 9. Nb3 Qc7 10. Bf4 Ne7 11. Nd4 Be4 12. f3 Bg6 13. Qa4+ Nc6 14. Bb5 Rc8 15. Bxc6+ bxc6 16. Qxa6 {0-1 (31) Nuri,K (2198)-Gaehler,M (2247) Graechen 2009}) 9... Qd7 {[%emt 0:10:37]} 10. Nd4 {[%emt 0:03:25]} Bg6 {[%emt 0:00:07]} 11. h4 {[%emt 0:15:14] Threatens to win with h5.} h5 {[%emt 0:00:29]} 12. Bd3 {[%emt 0:00:58]} Bxd3 {[%emt 0:00:26]} 13. Qxd3 {[%emt 0:00:06]} Bc5 {[%emt 0:01:33]} 14. Bg5 {[%emt 0:02:31]} (14. Nb3 $5 {[%cal Rb3c5]} Rc8 15. Nxc5 Rxc5 16. Qg3 $11) 14... Ne7 {[%emt 0:03:51]} 15. Bxe7 {[%emt 0:00:55]} Qxe7 {[%emt 0:01:04]} 16. O-O-O {[%emt 0:13:07]} O-O-O {[%emt 0:03:04]} 17. Kb1 {[%emt 0:02:45]} Kb8 {[%emt 0:00:24]} 18. Rc1 {[%emt 0:02:43]} Rd7 {[%emt 0:00:51]} 19. Qg3 {[%emt 0:04:09]} g6 {[%emt 0:02:36]} 20. Qg5 {[%emt 0:00:44]} Qf8 {[%emt 0:03:37]} 21. Qf4 {[%emt 0:04:38]} Qd8 {[%emt 0:01:43]} 22. f3 {[%emt 0:01:52]} Bf8 {[%emt 0:15:41][%cal Bc5f8,Bf8h6,Bh6c1][%mdl 32]} 23. g4 {[%emt 0:09:21]} (23. Rcd1 $11) 23... hxg4 $15 {[%emt 0:01:39]} 24. fxg4 {[%emt 0:03:22]} Rxh4 {[%emt 0:08:17]} 25. Nf3 {[%emt 0:00:47][%cal Bd4f3,Bf3e1,Be1d3,Bd3c5][%mdl 32]} Bh6 {[%emt 0:03:27]} 26. Qd4 {[%emt 0:04:08]} Bxc1 {[%emt 0:01:20]} 27. Rxh4 {[%emt 0:00:21] [#]} g5 $1 {[%emt 0:00:26]} (27... Bg5 $6 28. Rh7 $11) 28. Rh5 {[%emt 0:26:44]} Bf4 {[%emt 0:00:12]} 29. Ne1 {[%emt 0:00:00]} Rc7 {[%emt 0:01:39]} 30. b3 {[%emt 0:00:00] [#] Inhibits Rc4.} Qf8 {[%emt 0:02:31]} (30... f6 $1 $17 {[%cal Rf6e5]} 31. Nd3 (31. exf6 e5 $17) 31... fxe5 32. Nxe5 Qd6 33. Rh8+ Rc8 34. Rxc8+ Kxc8) 31. Kb2 {[%emt 0:00:00] The position is equal.} Qg7 {[%emt 0:07:37]} 32. Nd3 {[%emt 0:00:00]} Bd2 {[%emt 0:00:26]} 33. Nc5 $1 {[%emt 0:00:00]} Be1 {[%emt 0:00:38]} 34. Qe3 {[%emt 0:00:00]} Ka8 {[%emt 0:07:21][%cal Oe1c3]} 35. Rxg5 {[%emt 0:00:00]} Bxc3+ {[%emt 0:01:10]} 36. Kxc3 {[%emt 0:00:00]} Qf8 {[%emt 0:02:55]} 37. b4 {[%emt 0:00:00]} b6 {[%emt 0:00:11][%mdl 64] Pin} 38. Qd3 {[%emt 0:00:00]} bxc5 {[%emt 0:00:08][%cal Bb6c5,Bc5c4,Bc4c3][%mdl 32]} ({Much less strong is} 38... Qc8 39. Rg8 Qxg8 40. Qxa6+ Ra7 41. Qxb6 $14) 39. Qxa6+ $11 {[%emt 0:00:00][%mdl 4096] Endgame KQR-KQR} Kb8 {[%emt 0:00:16]} 40. b5 {[%emt 0:00:00]} c4 {[%emt 0:00:00][%cal Od5d4]} 41. Qb6+ {[%emt 0:00:00]} Kc8 $1 {[%emt 0:00:00][%cal Od5d4] White must now prevent ...d4+!} ({But not} 41... Rb7 42. Qd6+ Qxd6 43. exd6 $14) 42. Rg8 {[%emt 0:00:00]} d4+ {[%emt 0:00:00]} (42... Qxg8 $5 43. Qa6+ Kd8 44. Qd6+ Kc8 45. Qa6+ Kd8 46. Qd6+ Kc8 47. Qa6+ $11) 43. Kb2 {[%emt 0:00:00]} c3+ {[%emt 0:00:00]} (43... Qxg8 $5 44. Qa6+ Kd8 45. Qd6+ Kc8 46. Qa6+ Kd8 47. Qd6+ Kc8 48. Qa6+ $11) 44. Kb3 {[%emt 0:00:00] Chess con chili.} Qxg8 {[%emt 0:00:00]} 45. Qa6+ {[%emt 0:00:00]} Kb8 {[%emt 0:04:02] ( -> ...Qc8)} 46. Qb6+ {[%emt 0:00:00] Weighted Error Value: White=0.06 (flawless) /Black=0.07 (flawless)} 1/2-1/2

[Event "15th Arad Open 2022"]
[Site "Arad"]
[Date "2022.08.11"]
[Round "6.5"]
[White "Magold, Filip"]
[Black "Ardeleanu, Alin"]
[Result "1/2-1/2"]
[ECO "B90"]
[WhiteElo "2247"]
[BlackElo "2290"]
[Annotator "TA"]
[PlyCount "166"]
[EventDate "2022.08.08"]
[EventType "swiss"]
[EventCountry "ROU"]
[SourceTitle "playchess.com"]
[Source "ChessBase"]
[SourceQuality "1"]
[TimeControl "5400+30"]

{[%evp 23,165,8,20,30,0,10,22,0,0,0,0,0,0,0,0,0,0,0,0,0,0,0,0,0,0,0,0,0,0,5,8,0,20,-6,0,0,0,-8,0,-67,-65,-70,-73,-74,-83,-83,-78,-72,-79,-78,-62,-62,-68,-71,-62,-66,-35,-68,-68,-68,-8,-8,-8,-8,-8,-8,-8,-8,-8,-8,-8,-8,-8,-8,-8,-8,0,-217,-91,-255,-255,-255,-255,-255,-255,-255,-255,-255,-255,-255,-255,-255,-255,-255,-255,-255,-255,-255,-255,-255,-255,-255,-255,-255,-255,-255,-255,-255,-255,-255,-255,-255,-255,-255,-255,-255,-255,-255,-255,-255,-255,-255,-255,-255,-255,-255,-255,-255,-255,-311,-296,-311,-255,-255,-255,-311,-311,-311,-311,-311,-255,-255,0,0]} 1. e4 {[%emt 0:00:06]} c5 {[%emt 0:00:50]} 2. Nf3 {[%emt 1:31:24]} d6 {[%emt 0:00:30]} 3. d4 {[%emt 0:00:11]} cxd4 {[%emt 0:00:14]} 4. Nxd4 {[%emt 0:00:08]} Nf6 {[%emt 0:00:10]} 5. Nc3 {[%emt 1:32:28]} a6 {[%emt 0:00:09]} 6. Be3 {[%emt 0:00:05]} e5 {[%emt 0:01:44]} 7. Nb3 {[%emt 1:32:10]} Be6 {[%emt 0:00:32]} 8. f3 {[%emt 0:00:07]} Be7 {[%emt 1:30:21]} 9. Qd2 {[%emt 0:00:42]} O-O {[%emt 0:00:36]} 10. O-O-O {[%emt 0:00:06]} Nbd7 {[%emt 0:00:50]} 11. g4 {[%emt 0:00:55][%cal Bg2g4,Bg4g5][%mdl 32]} Qc7 {[%emt 0:05:09]} 12. g5 {[%emt 0:10:11]} Nh5 {[%emt 0:01:45]} 13. Nd5 {[%emt 0:02:31] B90: Sicilian Najdorf: Unusual White 6th moves, 6 Be3 Ng4 and 6 Be3 e5.} Bxd5 {[%emt 0:00:09]} 14. exd5 {[%emt 0:00:02]} Nb6 {[%emt 0:04:39][%cal Oa6a5]} 15. Qb4 {[%emt 0:08:09] [#]} Rfc8 $146 {[%emt 0:15:02][%csl Gc8][%cal Rc7c2]} ({Predecessor:} 15... Rac8 16. c3 Nc4 17. Bxc4 Qxc4 18. Qxb7 Rfe8 19. Kb1 Rb8 20. Qc6 Qxc6 21. dxc6 Rec8 {1-0 (44) Pichot,A (2630)-Womacka,M (2435) Chess.com INT 2020}) 16. c3 {[%emt 0:01:12] Active counter play!} Nc4 {[%emt 0:03:36]} 17. Bxc4 {[%emt 0:03:18]} Qxc4 {[%emt 0:00:13]} 18. Qxb7 {[%emt 0:02:07]} Bf8 {[%emt 0:07:53]} 19. Na5 {[%emt 0:06:57]} Qxa2 {[%emt 0:21:10]} (19... Qa4 $5 20. Nc6 Qxa2 $11) 20. Nc6 {[%emt 0:00:30] Against Rcb8} a5 {[%emt 0:00:05]} 21. Qb5 {[%emt 0:19:55] Against Qc4} a4 {[%emt 0:02:51]} 22. Kc2 {[%emt 0:01:24][%cal Bc1c2,Bc2b2,Bb2b3,Bb3b4][%mdl 32] Black must now prevent Ra1.} a3 {[%emt 0:01:25]} 23. Ra1 {[%emt 0:00:59]} Qxb2+ {[%emt 0:00:14]} 24. Qxb2 {[%emt 0:00:02]} axb2 {[%emt 0:00:04]} 25. Kxb2 {[%emt 0:00:04]} g6 {[%emt 0:08:32]} 26. Rhe1 {[%emt 0:09:54]} Re8 {[%emt 0:23:52]} 27. Kb3 {[%emt 0:02:28]} h6 {[%emt 0:18:53]} 28. Kb4 {[%emt 0:04:36]} (28. gxh6 {looks sharper.} Kh7 29. c4 Nf6 30. Rxa8 Rxa8 31. Kb4) 28... Rxa1 {[%emt 0:08:29]} (28... hxg5 {feels hotter.} 29. Bxg5 f6 30. Bd2 Ng7) 29. Rxa1 {[%emt 0:00:01]} e4 {[%emt 0:00:01]} 30. Rf1 {[%emt 0:07:17]} ({But not} 30. gxh6 exf3 31. Bd4 g5 $17) 30... Ng7 {[%emt 0:07:54]} 31. Nd4 {[%emt 0:05:51]} (31. gxh6 $11 Nf5 32. Bf4) 31... exf3 $1 $15 {[%emt 0:00:14]} 32. Rxf3 {[%emt 0:00:02]} hxg5 {[%emt 0:00:12]} 33. Bxg5 {[%emt 0:00:01] [#]} Re5 $1 {[%emt 0:00:12][%csl LRd5,LRg5]} 34. h4 {[%emt 0:07:01]} Rxd5 {[%emt 0:00:21]} 35. Kc4 {[%emt 0:00:31]} Rc5+ {[%emt 0:00:49]} 36. Kd3 {[%emt 0:00:05]} Re5 {[%emt 0:00:43]} 37. Rf1 {[%emt 0:00:49]} Ne6 {[%emt 0:01:53]} 38. Nxe6 {[%emt 0:04:26]} Rxe6 {[%emt 0:00:52][%mdl 4096] Endgame KRB-KRB} 39. Ra1 {[%emt 0:00:47]} Be7 {[%emt 0:00:42]} 40. Bxe7 {[%emt 0:00:00]} Rxe7 {[%emt 0:00:00] KR-KR} 41. Kd4 {[%emt 0:00:00]} Kg7 {[%emt 0:00:00]} (41... Re2 $15) 42. c4 $11 {[%emt 0:00:00]} Re2 {[%emt 0:00:00]} 43. Ra6 {[%emt 0:06:57]} Rd2+ {[%emt 0:00:00]} 44. Kc3 {[%emt 0:00:00]} Rd1 {[%emt 0:00:00]} 45. Kc2 $1 {[%emt 0:00:00]} Rd4 {[%emt 0:00:00][%csl LRc4,LRh4]} 46. Kc3 {[%emt 0:00:00]} Rxh4 {[%emt 0:00:00] Hoping for ...g5.} 47. Rxd6 {[%emt 0:00:00]} Rh1 {[%emt 0:00:56]} 48. c5 {[%emt 0:00:00]} Rc1+ {[%emt 0:04:29]} 49. Kd4 $1 {[%emt 0:00:00]} f5 {[%emt 0:02:26]} 50. Ra6 $2 {[%emt 0:00:19]} (50. c6 $11 {and White stays safe.}) 50... Kh6 {[%emt 0:00:36]} (50... g5 $19 {Threatens to win with ...Kf7.} 51. c6 f4) 51. Ra4 $2 {[%emt 0:02:36]} (51. Rd6 $17) 51... Kg5 $19 {[%emt 0:00:39] ...f4 is the strong threat.} 52. Rc4 {[%emt 0:00:22]} Rxc4+ {[%emt 0:01:53]} 53. Kxc4 {[%emt 0:00:01] [#] White wants to mate with c6. KPP-KP} Kf6 $1 {[%emt 0:00:09]} (53... f4 54. c6 f3 55. Kd3 Kf6 56. c7 (56. Ke3 f2 $11) 56... f2 57. Ke2 Ke7 58. c8=Q) 54. Kb5 {[%emt 0:00:01]} f4 {[%emt 0:00:25]} 55. c6 {[%emt 0:00:07] Threatening mate with c7.} f3 {[%emt 0:00:03]} 56. c7 {[%emt 0:10:01]} f2 {[%emt 0:00:04]} 57. c8=Q {[%emt 0:00:04]} f1=Q+ {[%emt 0:00:01] KQ-KQ} 58. Kb6 {[%emt 0:03:59] Qf8+ would kill now.} Qb1+ {[%emt 0:00:23]} 59. Ka7 {[%emt 0:00:15]} Qa2+ {[%emt 0:00:14]} 60. Kb8 {[%emt 0:00:05]} Qb3+ {[%emt 0:00:07]} 61. Ka8 {[%emt 0:00:50]} Qd5+ {[%emt 0:00:09]} 62. Kb8 {[%emt 0:00:26]} g5 {[%emt 0:00:49]} 63. Qf8+ {[%emt 0:00:29]} Kg6 {[%emt 0:00:18]} 64. Qe8+ {[%emt 0:00:29]} Kf5 {[%emt 0:00:12]} 65. Qh5 {[%emt 0:00:55]} Kf4 {[%emt 0:02:20]} 66. Qh2+ {[%emt 0:00:04]} Ke3 {[%emt 0:00:15]} 67. Qg1+ {[%emt 0:00:34]} Ke2 {[%emt 0:00:11]} 68. Qg4+ {[%emt 0:00:06]} Kf2 {[%emt 0:00:11]} 69. Qh5 {[%emt 0:08:07]} Qb3+ {[%emt 0:00:53]} 70. Ka7 {[%emt 0:00:52]} Qa3+ {[%emt 0:00:43]} 71. Kb8 {[%emt 0:00:05]} Qg3+ {[%emt 0:00:15]} 72. Ka7 {[%emt 0:00:07]} g4 {[%emt 0:00:36][%cal Bg5g4,Bg4g3][%mdl 32]} 73. Qf5+ {[%emt 0:01:37]} Qf3 {[%emt 0:00:22]} 74. Qc2+ {[%emt 0:00:21]} Kg1 {[%emt 0:00:42] ( -> ...Qf2+)} 75. Qc1+ {[%emt 0:01:42]} Qf1 {[%emt 0:02:57]} 76. Qg5 {[%emt 0:00:30]} Qf2+ {[%emt 0:00:09]} 77. Ka8 {[%emt 0:02:10]} g3 {[%emt 0:01:25]} 78. Qc1+ {[%emt 0:00:37]} Kg2 {[%emt 0:00:22]} 79. Qb1 {[%emt 0:00:58]} Qf8+ {[%emt 0:00:19]} 80. Ka7 {[%emt 0:00:25]} Qf7+ {[%emt 0:00:36]} 81. Ka8 {[%emt 0:00:29]} Kh2 {[%emt 0:00:19]} 82. Qc2+ {[%emt 0:00:04]} g2 {[%emt 0:00:26]} 83. Qc7+ $1 {[%emt 0:00:02]} Qxc7 {[%emt 0:00:21] Weighted Error Value: White=0.17 (very precise) /Black=0.08 (flawless)} 1/2-1/2